[Event "Titled Tuesday Blitz July 25 Late 2023"]
[White "Bauman_Guy"]
[Black "Lima, Kleyton Alcantara"]
[BlackFideId "22718397"]
[WhiteElo "2785"]
[BlackElo "2422"]
[Result "1-0"]
[Round "1"]
[TimeControl "180+2"]
[Date "2023.07.25"]
[WhiteClock "0:02:21"]
[BlackClock "0:01:13"]
[Board "66"]

1. e4 {[%clk 0:03:00]}  c5 {[%clk 0:02:59]} 2. Nf3 {[%clk 0:03:01]}  d6 {[%clk 0:02:59]} 3. d4 {[%clk 0:03:01]}  cxd4 {[%clk 0:03:00]} 4. Nxd4 {[%clk 0:03:02]}  Nf6 {[%clk 0:03:01]} 5. Nc3 {[%clk 0:03:02]}  a6 {[%clk 0:03:01]} 6. h3 {[%clk 0:03:02]}  e5 {[%clk 0:03:00]} 7. Nde2 {[%clk 0:03:02]}  h5 {[%clk 0:02:59]} 8. Bg5 {[%clk 0:03:01]}  Be6 {[%clk 0:02:57]} 9. Nc1 {[%clk 0:03:01]}  Nbd7 {[%clk 0:02:39]} 10. Be2 {[%clk 0:03:00]}  Rc8 {[%clk 0:02:37]} 11. O-O {[%clk 0:02:59]}  Be7 {[%clk 0:02:36]} 12. Nb3 {[%clk 0:02:59]}  g6 {[%clk 0:02:26]} 13. Kh1 {[%clk 0:02:56]}  O-O {[%clk 0:02:24]} 14. Qe1 {[%clk 0:02:55]}  b5 {[%clk 0:02:21]} 15. a3 {[%clk 0:02:54]}  Nb6 {[%clk 0:02:09]} 16. f4 {[%clk 0:02:53]}  exf4 {[%clk 0:02:00]} 17. Bxf4 {[%clk 0:02:53]}  Bc4 {[%clk 0:01:56]} 18. Nd4 {[%clk 0:02:47]}  Bxe2 {[%clk 0:01:55]} 19. Qxe2 {[%clk 0:02:47]}  Nc4 {[%clk 0:01:56]} 20. b3 {[%clk 0:02:46]}  Nb6 {[%clk 0:01:55]} 21. Rf3 {[%clk 0:02:43]}  Nbd7 {[%clk 0:01:54]} 22. Rd1 {[%clk 0:02:39]}  Ne5 {[%clk 0:01:54]} 23. Bxe5 {[%clk 0:02:38]}  dxe5 {[%clk 0:01:54]} 24. Ne6 {[%clk 0:02:37]}  Qa5 {[%clk 0:01:52]} 25. Nxf8 {[%clk 0:02:37]}  Bxf8 {[%clk 0:01:52]} 26. Nxb5 {[%clk 0:02:26]}  axb5 {[%clk 0:01:25]} 27. Rxf6 {[%clk 0:02:25]}  Qxa3 {[%clk 0:01:25]} 28. Rdf1 {[%clk 0:02:22]}  Rc7 {[%clk 0:01:23]} 29. Qxb5 {[%clk 0:02:22]}  Re7 {[%clk 0:01:13]} 30. Qd5 {[%clk 0:02:21]} 1-0


[Site "https://www.chess.com"]

[Event "Titled Tuesday Blitz July 25 Late 2023"]
[White "The_Straightforward_Rook"]
[Black "Pakleza, Zbigniew"]
[BlackFideId "1119290"]
[WhiteElo "2422"]
[BlackElo "2783"]
[Result "0-1"]
[Round "1"]
[TimeControl "180+2"]
[Date "2023.07.25"]
[WhiteClock "0:02:10"]
[BlackClock "0:00:57"]
[Board "67"]

1. d4 {[%clk 0:03:00]}  d6 {[%clk 0:02:59]} 2. c4 {[%clk 0:03:00]}  e5 {[%clk 0:03:00]} 3. Nc3 {[%clk 0:03:01]}  exd4 {[%clk 0:03:00]} 4. Qxd4 {[%clk 0:03:00]}  Nc6 {[%clk 0:03:01]} 5. Qd2 {[%clk 0:03:00]}  Nf6 {[%clk 0:03:01]} 6. b3 {[%clk 0:03:00]}  a5 {[%clk 0:03:02]} 7. Bb2 {[%clk 0:03:00]}  a4 {[%clk 0:03:02]} 8. Rd1 {[%clk 0:02:59]}  axb3 {[%clk 0:03:00]} 9. axb3 {[%clk 0:03:00]}  Be7 {[%clk 0:02:28]} 10. e3 {[%clk 0:03:00]}  Bf5 {[%clk 0:02:27]} 11. Nf3 {[%clk 0:02:58]}  O-O {[%clk 0:02:26]} 12. Bd3 {[%clk 0:02:57]}  Bxd3 {[%clk 0:02:22]} 13. Qxd3 {[%clk 0:02:58]}  Nb4 {[%clk 0:02:04]} 14. Qb1 {[%clk 0:02:58]}  c6 {[%clk 0:02:01]} 15. O-O {[%clk 0:02:58]}  Qc7 {[%clk 0:01:58]} 16. h3 {[%clk 0:02:54]}  Rfe8 {[%clk 0:01:57]} 17. Ng5 {[%clk 0:02:53]}  h6 {[%clk 0:01:51]} 18. Nge4 {[%clk 0:02:51]}  Nxe4 {[%clk 0:01:34]} 19. Nxe4 {[%clk 0:02:52]}  d5 {[%clk 0:01:33]} 20. cxd5 {[%clk 0:02:48]}  Nxd5 {[%clk 0:01:34]} 21. Ng3 {[%clk 0:02:45]}  Bf6 {[%clk 0:01:19]} 22. Rxd5 {[%clk 0:02:37]}  Bxb2 {[%clk 0:01:09]} 23. Rd3 {[%clk 0:02:26]}  Be5 {[%clk 0:01:04]} 24. Nf5 {[%clk 0:02:24]}  Ra1 {[%clk 0:01:00]} 25. Qc2 {[%clk 0:02:18]}  Bh2+ {[%clk 0:00:59]} 26. Kh1 {[%clk 0:02:10]}  Rxf1# {[%clk 0:00:57]} 0-1


[Site "https://www.chess.com"]

[Event "Titled Tuesday Blitz July 25 Late 2023"]
[White "Labussiere, Yago"]
[Black "Basso, Pier Luigi"]
[WhiteFideId "2186969"]
[BlackFideId "866970"]
[WhiteElo "2421"]
[BlackElo "2782"]
[Result "0-1"]
[Round "1"]
[TimeControl "180+2"]
[Date "2023.07.25"]
[WhiteClock "0:00:02"]
[BlackClock "0:00:31"]
[Board "69"]

1. c4 {[%clk 0:02:59]}  c6 {[%clk 0:03:00]} 2. d4 {[%clk 0:02:59]}  d5 {[%clk 0:03:01]} 3. cxd5 {[%clk 0:02:59]}  cxd5 {[%clk 0:03:02]} 4. Nc3 {[%clk 0:02:58]}  Nf6 {[%clk 0:03:02]} 5. Bf4 {[%clk 0:02:58]}  e6 {[%clk 0:03:02]} 6. e3 {[%clk 0:02:57]}  Be7 {[%clk 0:03:03]} 7. Bd3 {[%clk 0:02:54]}  Bd7 {[%clk 0:03:03]} 8. Rc1 {[%clk 0:02:51]}  Nc6 {[%clk 0:03:03]} 9. h3 {[%clk 0:02:44]}  O-O {[%clk 0:03:01]} 10. Nf3 {[%clk 0:02:41]}  Qb6 {[%clk 0:03:01]} 11. Qe2 {[%clk 0:02:30]}  Rfc8 {[%clk 0:03:01]} 12. O-O {[%clk 0:02:29]}  h6 {[%clk 0:03:01]} 13. Ne5 {[%clk 0:02:25]}  Be8 {[%clk 0:02:59]} 14. g4 {[%clk 0:01:51]}  Qd8 {[%clk 0:02:58]} 15. Bh2 {[%clk 0:01:47]}  Nxe5 {[%clk 0:02:56]} 16. Bxe5 {[%clk 0:01:41]}  Nd7 {[%clk 0:02:57]} 17. Bg3 {[%clk 0:01:40]}  Nb6 {[%clk 0:02:55]} 18. f4 {[%clk 0:01:37]}  Bd6 {[%clk 0:02:52]} 19. Kg2 {[%clk 0:01:37]}  a6 {[%clk 0:02:48]} 20. Qf2 {[%clk 0:01:34]}  Rc6 {[%clk 0:02:43]} 21. f5 {[%clk 0:01:33]}  exf5 {[%clk 0:02:39]} 22. Qxf5 {[%clk 0:01:21]}  Bxg3 {[%clk 0:02:25]} 23. Kxg3 {[%clk 0:01:19]}  Qg5 {[%clk 0:02:10]} 24. Qxg5 {[%clk 0:01:11]}  hxg5 {[%clk 0:02:11]} 25. Ne2 {[%clk 0:01:02]}  f6 {[%clk 0:01:36]} 26. Bf5 {[%clk 0:00:57]}  Nc4 {[%clk 0:01:22]} 27. Kf2 {[%clk 0:00:52]}  Nxb2 {[%clk 0:01:05]} 28. Rb1 {[%clk 0:00:52]}  Rb6 {[%clk 0:01:00]} 29. Rfc1 {[%clk 0:00:36]}  Bc6 {[%clk 0:00:55]} 30. Nc3 {[%clk 0:00:13]}  Kf7 {[%clk 0:00:48]} 31. Kf3 {[%clk 0:00:13]}  Rh8 {[%clk 0:00:46]} 32. Kg3 {[%clk 0:00:11]}  Re8 {[%clk 0:00:45]} 33. Kf2 {[%clk 0:00:10]}  g6 {[%clk 0:00:40]} 34. Bc2 {[%clk 0:00:09]}  Nc4 {[%clk 0:00:37]} 35. Rxb6 {[%clk 0:00:09]}  Nxb6 {[%clk 0:00:38]} 36. Bd3 {[%clk 0:00:09]}  Rh8 {[%clk 0:00:34]} 37. Kg3 {[%clk 0:00:09]}  Re8 {[%clk 0:00:35]} 38. Kf2 {[%clk 0:00:08]}  Nc8 {[%clk 0:00:35]} 39. Rb1 {[%clk 0:00:08]}  Nd6 {[%clk 0:00:35]} 40. Kf3 {[%clk 0:00:07]}  f5 {[%clk 0:00:34]} 41. a4 {[%clk 0:00:06]}  Kf6 {[%clk 0:00:32]} 42. Kf2 {[%clk 0:00:03]}  Rh8 {[%clk 0:00:32]} 43. Kg3 {[%clk 0:00:03]}  Re8 {[%clk 0:00:33]} 44. Kf2 {[%clk 0:00:03]}  f4 {[%clk 0:00:31]} 45. exf4 {[%clk 0:00:02]}  gxf4 {[%clk 0:00:32]} 46. Kf3 {[%clk 0:00:03]}  Re3+ {[%clk 0:00:31]} 47. Kxf4 {[%clk 0:00:02]}  Rxd3 {[%clk 0:00:31]} 0-1


[Site "https://www.chess.com"]

[Event "Titled Tuesday Blitz July 25 Late 2023"]
[White "Mekhitarian, Krikor Sevag"]
[Black "Arnold, Ken"]
[WhiteFideId "2107660"]
[BlackFideId "2056836"]
[WhiteElo "2775"]
[BlackElo "2420"]
[Result "1/2-1/2"]
[Round "1"]
[TimeControl "180+2"]
[Date "2023.07.25"]
[WhiteClock "0:00:06"]
[BlackClock "0:00:07"]
[Board "70"]

1. Nf3 {[%clk 0:02:59]}  d5 {[%clk 0:02:57]} 2. c4 {[%clk 0:02:58]}  e6 {[%clk 0:02:57]} 3. d4 {[%clk 0:02:57]}  Nf6 {[%clk 0:02:57]} 4. cxd5 {[%clk 0:02:58]}  exd5 {[%clk 0:02:57]} 5. Nc3 {[%clk 0:02:58]}  c6 {[%clk 0:02:57]} 6. Bf4 {[%clk 0:02:57]}  Bd6 {[%clk 0:02:56]} 7. Bxd6 {[%clk 0:02:57]}  Qxd6 {[%clk 0:02:56]} 8. e3 {[%clk 0:02:58]}  Bf5 {[%clk 0:02:55]} 9. Nh4 {[%clk 0:02:55]}  Be4 {[%clk 0:02:50]} 10. f3 {[%clk 0:02:37]}  Bg6 {[%clk 0:02:49]} 11. e4 {[%clk 0:02:37]}  dxe4 {[%clk 0:02:41]} 12. Nxg6 {[%clk 0:02:36]}  hxg6 {[%clk 0:02:40]} 13. fxe4 {[%clk 0:02:37]}  Qf4 {[%clk 0:02:23]} 14. Qf3 {[%clk 0:02:20]}  Qxf3 {[%clk 0:02:17]} 15. gxf3 {[%clk 0:02:21]}  Nbd7 {[%clk 0:02:17]} 16. Kf2 {[%clk 0:02:18]}  O-O-O {[%clk 0:02:07]} 17. Rd1 {[%clk 0:02:18]}  Rh4 {[%clk 0:02:03]} 18. Bc4 {[%clk 0:02:15]}  Rf8 {[%clk 0:01:52]} 19. Ne2 {[%clk 0:02:09]}  Nb6 {[%clk 0:01:46]} 20. Bb3 {[%clk 0:02:08]}  Nh5 {[%clk 0:01:40]} 21. a4 {[%clk 0:01:58]}  Nf4 {[%clk 0:01:30]} 22. Nxf4 {[%clk 0:01:43]}  Rxf4 {[%clk 0:01:29]} 23. Kg3 {[%clk 0:01:30]}  g5 {[%clk 0:01:27]} 24. h4 {[%clk 0:01:30]}  Rxh4 {[%clk 0:01:27]} 25. Rxh4 {[%clk 0:01:30]}  gxh4+ {[%clk 0:01:27]} 26. Kxh4 {[%clk 0:01:31]}  Rh8+ {[%clk 0:01:23]} 27. Kg3 {[%clk 0:01:31]}  f6 {[%clk 0:01:22]} 28. f4 {[%clk 0:01:22]}  Kc7 {[%clk 0:01:16]} 29. a5 {[%clk 0:01:16]}  Nd7 {[%clk 0:01:07]} 30. e5 {[%clk 0:01:16]}  g5 {[%clk 0:01:03]} 31. e6 {[%clk 0:00:58]}  Nf8 {[%clk 0:00:47]} 32. fxg5 {[%clk 0:00:28]}  fxg5 {[%clk 0:00:41]} 33. Rf1 {[%clk 0:00:18]}  Kd6 {[%clk 0:00:30]} 34. Rf6 {[%clk 0:00:13]}  b6 {[%clk 0:00:16]} 35. a6 {[%clk 0:00:14]}  c5 {[%clk 0:00:16]} 36. dxc5+ {[%clk 0:00:09]}  bxc5 {[%clk 0:00:15]} 37. Bc4 {[%clk 0:00:09]}  Nh7 {[%clk 0:00:11]} 38. Rf7 {[%clk 0:00:08]}  Nf8 {[%clk 0:00:09]} 39. e7 {[%clk 0:00:06]}  Nd7 {[%clk 0:00:08]} 40. Bb5 {[%clk 0:00:04]}  Re8 {[%clk 0:00:08]} 41. Rg7 {[%clk 0:00:02]}  Rxe7 {[%clk 0:00:08]} 42. Rg6+ {[%clk 0:00:02]}  Kc7 {[%clk 0:00:06]} 43. Rxg5 {[%clk 0:00:02]}  Ne5 {[%clk 0:00:05]} 44. Kf4 {[%clk 0:00:02]}  Nc6 {[%clk 0:00:02]} 45. Rxc5 {[%clk 0:00:02]}  Re6 {[%clk 0:00:03]} 46. Bxc6 {[%clk 0:00:02]}  Rxc6 {[%clk 0:00:02]} 47. Ra5 {[%clk 0:00:03]}  Kb6 {[%clk 0:00:03]} 48. Ra2 {[%clk 0:00:03]}  Rc4+ {[%clk 0:00:03]} 49. Ke5 {[%clk 0:00:03]}  Rb4 {[%clk 0:00:04]} 50. Kd5 {[%clk 0:00:02]}  Rb5+ {[%clk 0:00:04]} 51. Kc4 {[%clk 0:00:03]}  Ra5 {[%clk 0:00:05]} 52. Rxa5 {[%clk 0:00:02]}  Kxa5 {[%clk 0:00:04]} 53. b4+ {[%clk 0:00:03]}  Kxa6 {[%clk 0:00:05]} 54. Kc5 {[%clk 0:00:03]}  Kb7 {[%clk 0:00:06]} 55. Kb5 {[%clk 0:00:04]}  Kb8 {[%clk 0:00:06]} 56. Ka6 {[%clk 0:00:04]}  Ka8 {[%clk 0:00:07]} 57. Kb5 {[%clk 0:00:04]}  Kb7 {[%clk 0:00:07]} 58. Ka5 {[%clk 0:00:05]}  a6 {[%clk 0:00:07]} 59. b5 {[%clk 0:00:05]}  axb5 {[%clk 0:00:07]} 60. Kxb5 {[%clk 0:00:06]} 1/2-1/2


[Site "https://www.chess.com"]

[Event "Titled Tuesday Blitz July 25 Late 2023"]
[White "Jorajuria Mendoza, Algol"]
[Black "Schmakel, Sam"]
[WhiteFideId "5128897"]
[BlackFideId "2039311"]
[WhiteElo "2413"]
[BlackElo "2768"]
[Result "1-0"]
[Round "1"]
[TimeControl "180+2"]
[Date "2023.07.25"]
[WhiteClock "0:00:04"]
[BlackClock "0:00:02"]
[Board "75"]

1. e4 {[%clk 0:02:59]}  e5 {[%clk 0:02:55]} 2. Nf3 {[%clk 0:02:59]}  Nc6 {[%clk 0:02:53]} 3. Bb5 {[%clk 0:02:59]}  a6 {[%clk 0:02:49]} 4. Ba4 {[%clk 0:02:59]}  g6 {[%clk 0:02:43]} 5. O-O {[%clk 0:02:28]}  Bg7 {[%clk 0:02:42]} 6. c3 {[%clk 0:02:14]}  d6 {[%clk 0:02:41]} 7. d4 {[%clk 0:01:41]}  Bd7 {[%clk 0:02:41]} 8. Bg5 {[%clk 0:01:29]}  Nf6 {[%clk 0:02:35]} 9. Nbd2 {[%clk 0:01:25]}  h6 {[%clk 0:02:33]} 10. Be3 {[%clk 0:01:22]}  Ng4 {[%clk 0:02:31]} 11. Qe2 {[%clk 0:01:16]}  O-O {[%clk 0:02:29]} 12. Bb3 {[%clk 0:01:05]}  Qe7 {[%clk 0:02:02]} 13. dxe5 {[%clk 0:00:59]}  dxe5 {[%clk 0:02:02]} 14. Rad1 {[%clk 0:00:55]}  b5 {[%clk 0:01:59]} 15. a4 {[%clk 0:00:54]}  Na5 {[%clk 0:01:56]} 16. Bd5 {[%clk 0:00:54]}  c6 {[%clk 0:01:56]} 17. Ba2 {[%clk 0:00:54]}  Nxe3 {[%clk 0:01:51]} 18. Qxe3 {[%clk 0:00:55]}  c5 {[%clk 0:01:51]} 19. axb5 {[%clk 0:00:54]}  axb5 {[%clk 0:01:52]} 20. Bd5 {[%clk 0:00:53]}  Bc6 {[%clk 0:01:27]} 21. Bxc6 {[%clk 0:00:51]}  Nxc6 {[%clk 0:01:28]} 22. Nb3 {[%clk 0:00:51]}  c4 {[%clk 0:01:28]} 23. Nc5 {[%clk 0:00:49]}  Rfd8 {[%clk 0:01:25]} 24. Rxd8+ {[%clk 0:00:41]}  Rxd8 {[%clk 0:01:25]} 25. Ra1 {[%clk 0:00:42]}  Bf8 {[%clk 0:01:23]} 26. b4 {[%clk 0:00:35]}  Qe8 {[%clk 0:01:05]} 27. Ne1 {[%clk 0:00:31]}  Ra8 {[%clk 0:01:05]} 28. Rd1 {[%clk 0:00:25]}  Nd8 {[%clk 0:00:54]} 29. f3 {[%clk 0:00:22]}  Ne6 {[%clk 0:00:53]} 30. Nxe6 {[%clk 0:00:21]}  Qxe6 {[%clk 0:00:54]} 31. Kf2 {[%clk 0:00:17]}  Be7 {[%clk 0:00:46]} 32. Rd5 {[%clk 0:00:03]}  Ra2+ {[%clk 0:00:35]} 33. Kg1 {[%clk 0:00:03]}  Qa6 {[%clk 0:00:30]} 34. Rxe5 {[%clk 0:00:03]}  Bf6 {[%clk 0:00:30]} 35. Re8+ {[%clk 0:00:03]}  Kg7 {[%clk 0:00:31]} 36. e5 {[%clk 0:00:03]}  Bg5 {[%clk 0:00:31]} 37. Qd4 {[%clk 0:00:03]}  Rd2 {[%clk 0:00:29]} 38. Qc5 {[%clk 0:00:03]}  Be3+ {[%clk 0:00:15]} 39. Qxe3 {[%clk 0:00:03]}  Rd1 {[%clk 0:00:15]} 40. Kf2 {[%clk 0:00:03]}  Qa2+ {[%clk 0:00:14]} 41. Kg3 {[%clk 0:00:03]}  h5 {[%clk 0:00:05]} 42. e6 {[%clk 0:00:03]}  f5 {[%clk 0:00:01]} 43. Qe5+ {[%clk 0:00:03]}  Kh6 {[%clk 0:00:02]} 44. Qh8+ {[%clk 0:00:03]}  Kg5 {[%clk 0:00:02]} 45. h4# {[%clk 0:00:04]} 1-0


[Site "https://www.chess.com"]

[Event "Titled Tuesday Blitz July 25 Late 2023"]
[White "Nazari, Arad"]
[Black "Necromon"]
[WhiteFideId "12577324"]
[WhiteElo "2764"]
[BlackElo "2410"]
[Result "0-1"]
[Round "1"]
[TimeControl "180+2"]
[Date "2023.07.25"]
[WhiteClock "0:00:47"]
[BlackClock "0:00:19"]
[Board "78"]

1. e4 {[%clk 0:03:00]}  c5 {[%clk 0:02:59]} 2. Nf3 {[%clk 0:03:00]}  Nc6 {[%clk 0:02:59]} 3. Bb5 {[%clk 0:03:01]}  g6 {[%clk 0:02:58]} 4. Bxc6 {[%clk 0:03:01]}  dxc6 {[%clk 0:02:59]} 5. d3 {[%clk 0:03:02]}  Bg7 {[%clk 0:02:59]} 6. h3 {[%clk 0:03:02]}  Nf6 {[%clk 0:02:59]} 7. Be3 {[%clk 0:03:03]}  b6 {[%clk 0:02:59]} 8. Nc3 {[%clk 0:03:02]}  O-O {[%clk 0:02:59]} 9. Qd2 {[%clk 0:03:02]}  e5 {[%clk 0:02:59]} 10. Bh6 {[%clk 0:03:00]}  Qc7 {[%clk 0:02:55]} 11. O-O-O {[%clk 0:02:41]}  Be6 {[%clk 0:02:44]} 12. g4 {[%clk 0:02:31]}  Rad8 {[%clk 0:01:56]} 13. Bxg7 {[%clk 0:02:27]}  Kxg7 {[%clk 0:01:56]} 14. Qg5 {[%clk 0:02:25]}  Nd7 {[%clk 0:01:49]} 15. Rdg1 {[%clk 0:02:17]}  h6 {[%clk 0:01:24]} 16. Qe3 {[%clk 0:02:17]}  c4 {[%clk 0:01:17]} 17. d4 {[%clk 0:02:13]}  exd4 {[%clk 0:01:14]} 18. Nxd4 {[%clk 0:02:13]}  Nc5 {[%clk 0:01:11]} 19. f4 {[%clk 0:02:13]}  Rfe8 {[%clk 0:00:48]} 20. e5 {[%clk 0:01:46]}  Qd7 {[%clk 0:00:44]} 21. Rd1 {[%clk 0:01:44]}  Nd3+ {[%clk 0:00:44]} 22. cxd3 {[%clk 0:01:39]}  Qxd4 {[%clk 0:00:44]} 23. Qg3 {[%clk 0:01:15]}  cxd3 {[%clk 0:00:38]} 24. f5 {[%clk 0:01:15]}  Bxa2 {[%clk 0:00:33]} 25. Nxa2 {[%clk 0:01:06]}  d2+ {[%clk 0:00:22]} 26. Kb1 {[%clk 0:01:05]}  Rxe5 {[%clk 0:00:22]} 27. fxg6 {[%clk 0:01:01]}  fxg6 {[%clk 0:00:22]} 28. Rhf1 {[%clk 0:00:53]}  Qd3+ {[%clk 0:00:20]} 29. Ka1 {[%clk 0:00:47]}  Qxg3 {[%clk 0:00:19]} 0-1


[Site "https://www.chess.com"]

[Event "Titled Tuesday Blitz July 25 Late 2023"]
[White "Bolourchifard, Farzad"]
[Black "Ai, Evan"]
[WhiteFideId "12510084"]
[BlackFideId "2094770"]
[WhiteElo "2762"]
[BlackElo "2408"]
[Result "1-0"]
[Round "1"]
[TimeControl "180+2"]
[Date "2023.07.25"]
[WhiteClock "0:01:02"]
[BlackClock "0:00:29"]
[Board "80"]

1. d4 {[%clk 0:03:00]}  Nf6 {[%clk 0:02:55]} 2. Nf3 {[%clk 0:03:01]}  e6 {[%clk 0:02:54]} 3. c4 {[%clk 0:03:01]}  d5 {[%clk 0:02:54]} 4. Nc3 {[%clk 0:03:01]}  Bb4 {[%clk 0:02:53]} 5. Bg5 {[%clk 0:03:01]}  O-O {[%clk 0:02:51]} 6. e3 {[%clk 0:03:01]}  h6 {[%clk 0:02:48]} 7. Bh4 {[%clk 0:02:58]}  b6 {[%clk 0:02:47]} 8. cxd5 {[%clk 0:02:59]}  exd5 {[%clk 0:02:46]} 9. Bd3 {[%clk 0:02:58]}  Bb7 {[%clk 0:02:43]} 10. O-O {[%clk 0:02:58]}  Re8 {[%clk 0:02:36]} 11. Ne5 {[%clk 0:02:57]}  Be7 {[%clk 0:02:31]} 12. f4 {[%clk 0:02:57]}  Ne4 {[%clk 0:02:26]} 13. Bxe7 {[%clk 0:02:48]}  Qxe7 {[%clk 0:02:27]} 14. Nxe4 {[%clk 0:02:48]}  dxe4 {[%clk 0:02:28]} 15. Bc4 {[%clk 0:02:48]}  Rf8 {[%clk 0:02:23]} 16. Ng6 {[%clk 0:02:25]}  Qd6 {[%clk 0:02:00]} 17. Nxf8 {[%clk 0:02:24]}  Qxf8 {[%clk 0:02:01]} 18. Qg4 {[%clk 0:02:11]}  c5 {[%clk 0:01:33]} 19. Rad1 {[%clk 0:01:59]}  cxd4 {[%clk 0:01:16]} 20. Rxd4 {[%clk 0:01:59]}  Kh8 {[%clk 0:01:09]} 21. Rfd1 {[%clk 0:01:28]}  Nc6 {[%clk 0:01:07]} 22. Rd6 {[%clk 0:01:28]}  Ne7 {[%clk 0:00:49]} 23. f5 {[%clk 0:01:14]}  Nc6 {[%clk 0:00:36]} 24. f6 {[%clk 0:01:10]}  g6 {[%clk 0:00:35]} 25. Qd7 {[%clk 0:01:04]}  Ne5 {[%clk 0:00:32]} 26. Qxb7 {[%clk 0:01:04]}  Nxc4 {[%clk 0:00:33]} 27. Qxa8 {[%clk 0:01:02]}  Qxa8 {[%clk 0:00:29]} 28. Rd8+ {[%clk 0:01:02]} 1-0


[Site "https://www.chess.com"]

[Event "Titled Tuesday Blitz July 25 Late 2023"]
[White "Miszler, Levente"]
[Black "Schnaider, Ilan"]
[WhiteFideId "763276"]
[BlackFideId "169013"]
[WhiteElo "2407"]
[BlackElo "2760"]
[Result "1-0"]
[Round "1"]
[TimeControl "180+2"]
[Date "2023.07.25"]
[WhiteClock "0:00:09"]
[BlackClock "0:00:03"]
[Board "81"]

1. Nf3 {[%clk 0:02:53]}  Nf6 {[%clk 0:03:00]} 2. c4 {[%clk 0:02:52]}  g6 {[%clk 0:03:00]} 3. g3 {[%clk 0:02:51]}  Bg7 {[%clk 0:03:00]} 4. Bg2 {[%clk 0:02:51]}  O-O {[%clk 0:03:01]} 5. O-O {[%clk 0:02:52]}  d5 {[%clk 0:03:00]} 6. d4 {[%clk 0:02:50]}  Nc6 {[%clk 0:03:00]} 7. Nc3 {[%clk 0:02:43]}  dxc4 {[%clk 0:03:00]} 8. e4 {[%clk 0:02:42]}  Bg4 {[%clk 0:03:00]} 9. d5 {[%clk 0:02:37]}  Ne5 {[%clk 0:03:00]} 10. Bf4 {[%clk 0:02:37]}  Nd3 {[%clk 0:02:53]} 11. Qd2 {[%clk 0:02:30]}  c6 {[%clk 0:02:39]} 12. Ne5 {[%clk 0:02:13]}  Nxe5 {[%clk 0:02:29]} 13. Bxe5 {[%clk 0:02:13]}  Nxe4 {[%clk 0:02:28]} 14. Qd4 {[%clk 0:02:01]}  Nxc3 {[%clk 0:02:28]} 15. Qxc3 {[%clk 0:01:57]}  f6 {[%clk 0:02:20]} 16. Qxc4 {[%clk 0:01:50]}  cxd5 {[%clk 0:02:11]} 17. Qxg4 {[%clk 0:01:50]}  fxe5 {[%clk 0:02:11]} 18. Qe6+ {[%clk 0:01:49]}  Kh8 {[%clk 0:02:10]} 19. Qxd5 {[%clk 0:01:46]}  Qd6 {[%clk 0:01:57]} 20. Rad1 {[%clk 0:01:35]}  Qf6 {[%clk 0:01:12]} 21. Qxb7 {[%clk 0:01:29]}  Rab8 {[%clk 0:01:12]} 22. Qxa7 {[%clk 0:01:29]}  Rxb2 {[%clk 0:01:12]} 23. a4 {[%clk 0:01:26]}  Ra2 {[%clk 0:00:50]} 24. a5 {[%clk 0:01:26]}  Bh6 {[%clk 0:00:35]} 25. Qb6 {[%clk 0:01:22]}  e6 {[%clk 0:00:13]} 26. a6 {[%clk 0:01:15]}  Qe7 {[%clk 0:00:13]} 27. Bb7 {[%clk 0:01:13]}  Qa3 {[%clk 0:00:13]} 28. Qxe6 {[%clk 0:01:05]}  Raxf2 {[%clk 0:00:08]} 29. Qxe5+ {[%clk 0:01:01]}  Bg7 {[%clk 0:00:07]} 30. Qe4 {[%clk 0:00:40]}  Qc5 {[%clk 0:00:06]} 31. Rxf2 {[%clk 0:00:37]}  Qxf2+ {[%clk 0:00:07]} 32. Kh1 {[%clk 0:00:38]}  Qa2 {[%clk 0:00:06]} 33. Qg2 {[%clk 0:00:26]}  Qa4 {[%clk 0:00:05]} 34. Qg1 {[%clk 0:00:20]}  h5 {[%clk 0:00:03]} 35. a7 {[%clk 0:00:20]}  Kh7 {[%clk 0:00:02]} 36. a8=Q {[%clk 0:00:20]}  Rxa8 {[%clk 0:00:02]} 37. Bxa8 {[%clk 0:00:20]}  Qxa8+ {[%clk 0:00:03]} 38. Qg2 {[%clk 0:00:21]}  Qa4 {[%clk 0:00:04]} 39. Qd5 {[%clk 0:00:21]}  Kh6 {[%clk 0:00:03]} 40. Kg2 {[%clk 0:00:22]}  Qc2+ {[%clk 0:00:03]} 41. Qd2+ {[%clk 0:00:22]}  Qxd2+ {[%clk 0:00:02]} 42. Rxd2 {[%clk 0:00:23]}  Kh7 {[%clk 0:00:02]} 43. Rc2 {[%clk 0:00:23]}  Kh6 {[%clk 0:00:03]} 44. Rc6 {[%clk 0:00:24]}  Be5 {[%clk 0:00:04]} 45. Kf3 {[%clk 0:00:24]}  Bg7 {[%clk 0:00:04]} 46. Ke4 {[%clk 0:00:24]}  Kg5 {[%clk 0:00:04]} 47. h3 {[%clk 0:00:23]}  Bb2 {[%clk 0:00:03]} 48. Kd5 {[%clk 0:00:21]}  Ba3 {[%clk 0:00:02]} 49. Ke6 {[%clk 0:00:20]}  h4 {[%clk 0:00:02]} 50. g4 {[%clk 0:00:19]}  Kf4 {[%clk 0:00:02]} 51. Rc3 {[%clk 0:00:19]}  Bb2 {[%clk 0:00:02]} 52. Rb3 {[%clk 0:00:18]}  Bc1 {[%clk 0:00:01]} 53. Kf6 {[%clk 0:00:17]}  g5 {[%clk 0:00:02]} 54. Kg6 {[%clk 0:00:17]}  Bd2 {[%clk 0:00:01]} 55. Kh5 {[%clk 0:00:17]}  Bc1 {[%clk 0:00:02]} 56. Rc3 {[%clk 0:00:17]}  Bd2 {[%clk 0:00:02]} 57. Rd3 {[%clk 0:00:17]}  Bc1 {[%clk 0:00:03]} 58. Rd5 {[%clk 0:00:16]}  Be3 {[%clk 0:00:03]} 59. Rxg5 {[%clk 0:00:16]}  Kg3 {[%clk 0:00:03]} 60. Re5 {[%clk 0:00:16]}  Bf4 {[%clk 0:00:03]} 61. Re4 {[%clk 0:00:16]}  Bd2 {[%clk 0:00:03]} 62. Rd4 {[%clk 0:00:16]}  Bf4 {[%clk 0:00:01]} 63. Rd3+ {[%clk 0:00:16]}  Kg2 {[%clk 0:00:02]} 64. g5 {[%clk 0:00:16]}  Bg3 {[%clk 0:00:03]} 65. g6 {[%clk 0:00:16]}  Be5 {[%clk 0:00:02]} 66. Kh6 {[%clk 0:00:14]}  Bf4+ {[%clk 0:00:03]} 67. Kh7 {[%clk 0:00:14]}  Bg3 {[%clk 0:00:03]} 68. g7 {[%clk 0:00:14]}  Kxh3 {[%clk 0:00:04]} 69. g8=Q {[%clk 0:00:14]}  Kh2 {[%clk 0:00:04]} 70. Qe6 {[%clk 0:00:14]}  Bf2 {[%clk 0:00:03]} 71. Qe5+ {[%clk 0:00:13]}  Bg3 {[%clk 0:00:03]} 72. Qe2+ {[%clk 0:00:13]}  Kh3 {[%clk 0:00:03]} 73. Qf1+ {[%clk 0:00:11]}  Kg4 {[%clk 0:00:03]} 74. Qg2 {[%clk 0:00:11]}  Kf4 {[%clk 0:00:02]} 75. Qf3+ {[%clk 0:00:10]}  Kg5 {[%clk 0:00:02]} 76. Rd5+ {[%clk 0:00:10]}  Be5 {[%clk 0:00:03]} 77. Rxe5# {[%clk 0:00:09]} 1-0


[Site "https://www.chess.com"]